fUST/lending_fUST_20250530
["ID","MTS","AMOUNT","RATE_DAILY","PERIOD"]
[363039676,1748559034197,-430.34543098,0.00019178,2]
[363039678,1748559034206,-430.0,0.00019178,2]
[363039680,1748559034215,-453.69007635,0.00019178,2]
[363039682,1748559034224,-557.24848393,0.00019178,2]
[363039684,1748559034234,-430.0,0.00019178,2]
[363039686,1748559034243,-430.0,0.00019178,2]
[363039688,1748559034252,-310.0,0.00019178,2]
[363039690,1748559034262,-348.31960802,0.00019178,2]
[363039692,1748559034271,-430.0,0.00019178,2]
[363039694,1748559034281,-760.73,0.00019178,2]
[363039696,1748559034290,-235.57827879,0.00019178,2]
[363039698,1748559034300,-430.0,0.00019178,2]
[363039700,1748559034311,-433.4971624,0.00019178,2]
[363039702,1748559034320,-450.0,0.00019178,2]
[363039704,1748559034330,-430.0,0.00019178,2]
[363039706,1748559034339,-420.22,0.00019178,2]
[363039708,1748559034349,-430.0,0.00019178,2]
[363039710,1748559034359,-430.0,0.00019178,2]
[363039712,1748559034368,-430.0,0.00019178,2]
[363039714,1748559034379,-430.0,0.00019178,2]
[363039717,1748559034389,-430.0,0.00019178,2]
[363039718,1748559034398,-430.0,0.00019178,2]
[363039720,1748559034407,-430.0,0.00019178,2]
[363039722,1748559034417,-430.0,0.00019178,2]
[363039724,1748559034426,-430.0,0.00019178,2]
[363039726,1748559034435,-430.0,0.00019178,2]
[363039728,1748559034444,-373.6481487,0.00019178,2]
[363039730,1748559034454,-439.84941882,0.00019178,2]
[363039732,1748559034465,-430.0,0.00019178,2]
[363039734,1748559034474,-355.48928372,0.00019178,2]
[363039736,1748559034484,-430.0,0.00019178,2]
[363039738,1748559034496,-430.0,0.00019178,2]
[363039740,1748559034505,-430.0,0.00019178,2]
[363039742,1748559034515,-500.0,0.00019178,2]
[363039745,1748559034526,-500.0,0.00019178,2]
[363039747,1748559034536,-500.0,0.00019178,2]
[363039749,1748559034546,-500.0,0.00019178,2]
[363039751,1748559034555,-500.0,0.00019178,2]
[363039753,1748559034565,-500.0,0.00019178,2]
[363039755,1748559034574,-500.0,0.00019178,2]
[363039757,1748559034584,-500.0,0.00019178,2]
[363039759,1748559034593,-438.04630413,0.00019178,2]
[363039761,1748559034602,-430.0,0.00019178,2]
[363039763,1748559034611,-402.54833888,0.00019178,2]
[363039765,1748559034620,-430.0,0.00019178,2]
[363039767,1748559034629,-430.0,0.00019178,2]
[363039769,1748559034638,-430.0,0.00019178,2]
[363039771,1748559034647,-430.0,0.00019178,2]
[363039773,1748559034655,-430.0,0.00019178,2]
[363039774,1748559034665,-430.0,0.00019178,2]
[363039776,1748559034674,-430.0,0.00019178,2]
[363039778,1748559034684,-430.0,0.00019178,2]
[363039780,1748559034693,-404.0858259,0.00019178,2]
[363039782,1748559034702,-430.0,0.00019178,2]
[363039785,1748559034711,-450.0,0.00019178,2]
[363039787,1748559034720,-430.0,0.00019178,2]
[363039788,1748559034729,-430.0,0.00019178,2]
[363039790,1748559034739,-430.0,0.00019178,2]
[363039793,1748559034748,-430.0,0.00019178,2]
[363039795,1748559034757,-289.92,0.00019178,2]
[363039796,1748559034766,-430.0,0.00019178,2]
[363039798,1748559034775,-430.0,0.00019178,2]
[363039800,1748559034784,-430.0,0.00019178,2]
[363039802,1748559034793,-414.60086281,0.00019178,2]
[363039804,1748559034802,-430.0,0.00019178,2]
[363039806,1748559034812,-483.51507084,0.00019178,2]
[363039808,1748559034821,-430.0,0.00019178,2]
[363039810,1748559034831,-773.76,0.00019178,2]
[363039812,1748559034840,-430.0,0.00019178,2]
[363039814,1748559034849,-400.12647874,0.00019178,2]
[363039817,1748559034859,-430.0,0.00019178,2]
[363039818,1748559034868,-430.0,0.00019178,2]
[363039820,1748559034878,-430.0,0.00019178,2]
[363039822,1748559034887,-342.92169423,0.00019178,2]
[363039824,1748559034896,-4753.22,0.00019178,2]
[363039826,1748559034905,-430.0,0.00019178,2]
[363039828,1748559034915,-430.0,0.00019178,2]
[363039830,1748559034924,-390.42739517,0.00019178,2]
[363039832,1748559034933,-430.0,0.00019178,2]
[363039834,1748559034942,-430.0,0.00019178,2]
[363039836,1748559034951,-425.09329993,0.00019178,2]
[363039838,1748559034960,-504.98298771,0.00019178,2]
[363039840,1748559034969,-500.0,0.00019178,2]
[363039842,1748559034978,-430.0,0.00019178,2]
[363039844,1748559034987,-500.0,0.00019178,2]
[363039846,1748559034997,-500.0,0.00019178,2]
[363039848,1748559035009,-430.0,0.00019178,2]
[363039850,1748559035018,-500.0,0.00019178,2]
[363039852,1748559035027,-500.0,0.00019178,2]
[363039854,1748559035036,-662.19,0.00019178,2]
[363039856,1748559035045,-322.1032523,0.00019178,2]
[363039858,1748559035055,-430.0,0.00019178,2]
[363039860,1748559035063,-3674.83,0.00019178,2]
[363039862,1748559035073,-430.0,0.00019178,2]
[363039864,1748559035082,-430.0,0.00019178,2]
[363039866,1748559035091,-430.0,0.00019178,2]
[363039868,1748559035100,-430.0,0.00019178,2]
[363039870,1748559035110,-430.0,0.00019178,2]
[363039872,1748559035119,-430.0,0.00019178,2]
[363039874,1748559035128,-589.21,0.00019178,2]
[363039876,1748559035137,-2053.24,0.00019178,2]
[363039878,1748559035146,-430.0,0.00019178,2]
[363039880,1748559035155,-400.44991057,0.00019178,2]
[363039882,1748559035164,-430.0,0.00019178,2]
[363039884,1748559035174,-430.0,0.00019178,2]
[363039886,1748559035183,-262.72723226,0.00019178,2]
[363039888,1748559035192,-521.80340494,0.00019178,2]
[363039890,1748559035201,-430.0,0.00019178,2]
[363039892,1748559035211,-430.0,0.00019178,2]
[363039894,1748559035220,-404.55519554,0.00019178,2]
[363039896,1748559035229,-720.56,0.00019178,2]
[363039898,1748559035238,-696.31,0.00019178,2]
[363039900,1748559035247,-2613.16,0.00019178,2]
[363039902,1748559035256,-430.0,0.00019178,2]
[363039904,1748559035265,-430.0,0.00019178,2]
[363039906,1748559035274,-430.0,0.00019178,2]
[363039908,1748559035283,-430.0,0.00019178,2]
[363039910,1748559035292,-430.0,0.00019178,2]
[363039911,1748559035301,-430.0,0.00019178,2]
[363039913,1748559035310,-430.0,0.00019178,2]
[363039915,1748559035320,-430.0,0.00019178,2]
[363039917,1748559035329,-430.0,0.00019178,2]
[363039919,1748559035338,-430.0,0.00019178,2]
[363039921,1748559035347,-430.0,0.00019178,2]
[363039923,1748559035356,-430.0,0.00019178,2]
[363039925,1748559035366,-311.81253736,0.00019178,2]
[363039927,1748559035375,-454.5639248,0.00019178,2]
[363039929,1748559035384,-430.0,0.00019178,2]
[363039931,1748559035394,-430.0,0.00019178,2]
[363039933,1748559035403,-399.68876216,0.00019178,2]
[363039935,1748559035413,-453.19469808,0.00019178,2]
[363039937,1748559035422,-430.0,0.00019178,2]
[363039939,1748559035431,-4412.79,0.00019178,2]
[363039941,1748559035440,-400.43682728,0.00019178,2]
[363039943,1748559035449,-968.5,0.00019178,2]
[363039945,1748559035458,-430.0,0.00019178,2]
[363039947,1748559035467,-450.0,0.00019178,2]
[363039949,1748559035476,-430.0,0.00019178,2]
[363039961,1748559035486,-430.0,0.00019178,2]
[363039964,1748559035596,-430.0,0.00019178,2]
[363039966,1748559035605,-430.0,0.00019178,2]
[363039968,1748559035615,-517.0,0.00019178,2]
[363039970,1748559035624,-430.0,0.00019178,2]
[363039972,1748559035633,-644.49,0.00019178,2]
[363039974,1748559035642,-430.0,0.00019178,2]
[363039976,1748559035651,-450.61126204,0.00019178,2]
[363039978,1748559035660,-430.0,0.00019178,2]
[363039980,1748559035669,-450.0,0.00019178,2]
[363039982,1748559035679,-430.0,0.00019178,2]
[363039984,1748559035688,-430.0,0.00019178,2]
[363039986,1748559035697,-430.0,0.00019178,2]
[363039988,1748559035705,-430.0,0.00019178,2]
[363039989,1748559035715,-430.0,0.00019178,2]
[363039992,1748559035724,-217.18781882,0.00019178,2]
[363039994,1748559035733,-430.0,0.00019178,2]
[363039995,1748559035743,-430.0,0.00019178,2]
[363039997,1748559035752,-953.49,0.00019178,2]
[363039999,1748559035762,-430.0,0.00019178,2]
[363040001,1748559035771,-2879.71,0.00019178,2]
[363040003,1748559035781,-458.78,0.00019178,2]
[363040005,1748559035791,-697.57,0.00019178,2]
[363040007,1748559035800,-430.0,0.00019178,2]
[363040009,1748559035809,-430.0,0.00019178,2]
[363040012,1748559035819,-430.0,0.00019178,2]
[363040013,1748559035828,-430.0,0.00019178,2]
[363040015,1748559035837,-430.0,0.00019178,2]
[363040017,1748559035847,-3822.31,0.00019178,2]
[363040019,1748559035856,-430.0,0.00019178,2]
[363040021,1748559035865,-431.40154279,0.00019178,2]
[363040023,1748559035874,-500.0,0.00019178,2]
[363040025,1748559035883,-430.0,0.00019178,2]
[363040027,1748559035893,-430.0,0.00019178,2]
[363040029,1748559035902,-431.11679343,0.00019178,2]
[363040031,1748559035911,-701.71,0.00019178,2]
[363040033,1748559035921,-701.71,0.00019178,2]
[363040036,1748559035930,-430.0,0.00019178,2]
[363040037,1748559035940,-701.71,0.00019178,2]
[363040039,1748559035949,-701.71,0.00019178,2]
[363040041,1748559035958,-701.71,0.00019178,2]
[363040043,1748559035967,-430.0,0.00019178,2]
[363040045,1748559035977,-701.71,0.00019178,2]
[363040047,1748559035986,-430.0,0.00019178,2]
[363040049,1748559035996,-701.71,0.00019178,2]
[363040052,1748559036009,-848.19,0.00019178,2]
[363040053,1748559036018,-701.71,0.00019178,2]
[363040055,1748559036028,-701.71,0.00019178,2]
[363040057,1748559036039,-701.71,0.00019178,2]
[363040060,1748559036048,-701.71,0.00019178,2]
[363040062,1748559036058,-701.71,0.00019178,2]
[363040064,1748559036067,-430.0,0.00019178,2]
[363040066,1748559036079,-1041.37,0.00019178,2]
[363040068,1748559036089,-430.0,0.00019178,2]
[363040070,1748559036098,-430.0,0.00019178,2]
[363040072,1748559036107,-430.0,0.00019178,2]
[363040074,1748559036117,-430.0,0.00019178,2]
[363040076,1748559036126,-430.0,0.00019178,2]
[363040078,1748559036135,-8172.02,0.00019178,2]
[363040080,1748559036144,-430.0,0.00019178,2]
[363040082,1748559036153,-430.0,0.00019178,2]
[363040084,1748559036163,-430.0,0.00019178,2]
[363040086,1748559036172,-430.0,0.00019178,2]
[363040088,1748559036181,-1022.41,0.00019178,2]
[363040090,1748559036191,-1425.87,0.00019178,2]
[363040091,1748559036200,-5104.13,0.00019178,2]
[363040093,1748559036209,-1326.38,0.00019178,2]
[363040095,1748559036219,-430.0,0.00019178,2]
[363040097,1748559036228,-350.0,0.00019178,2]
[363040099,1748559036237,-430.0,0.00019178,2]
[363040101,1748559036247,-873.84,0.00019178,2]
[363040103,1748559036256,-7369.0,0.00019178,2]
[363040105,1748559036265,-467.28,0.00019178,2]
[363040107,1748559036275,-500.0,0.00019178,2]
[363040109,1748559036284,-430.0,0.00019178,2]
[363040111,1748559036294,-2070.38,0.00019178,2]
[363040113,1748559036303,-430.0,0.00019178,2]
[363040115,1748559036313,-430.0,0.00019178,2]
[363040117,1748559036323,-2055.19,0.00019178,2]
[363040119,1748559036332,-430.0,0.00019178,2]
[363040121,1748559036342,-430.0,0.00019178,2]
[363040124,1748559036352,-430.0,0.00019178,2]
[363040125,1748559036361,-1511.1,0.00019178,2]
[363040127,1748559036370,-430.0,0.00019178,2]
[363040129,1748559036380,-430.0,0.00019178,2]
[363040131,1748559036389,-430.0,0.00019178,2]
[363040133,1748559036399,-430.0,0.00019178,2]
[363040135,1748559036408,-1350.97,0.00019178,2]
[363040137,1748559036417,-1584.57,0.00019178,2]
[363040139,1748559036427,-750.88,0.00019178,2]
[363040141,1748559036436,-430.0,0.00019178,2]
[363040143,1748559036445,-1425.46,0.00019178,2]
[363040145,1748559036454,-430.0,0.00019178,2]
[363040147,1748559036464,-430.0,0.00019178,2]
[363040149,1748559036473,-722.11,0.00019178,2]
[363040151,1748559036482,-760.02,0.00019178,2]
[363040153,1748559036491,-430.0,0.00019178,2]
[363040155,1748559036501,-430.0,0.00019178,2]
[363040157,1748559036510,-500.0,0.00019178,2]
[363040159,1748559036520,-453.83857874,0.00019178,2]
[363040161,1748559036530,-578.85,0.00019178,2]
[363040163,1748559036540,-615.21,0.00019178,2]
[363040165,1748559036550,-913.66,0.00019178,2]
[363040167,1748559036559,-741.95,0.00019178,2]
[363040169,1748559036568,-430.0,0.00019178,2]
[363040171,1748559036578,-430.0,0.00019178,2]
[363040173,1748559036587,-430.0,0.00019178,2]
[363040175,1748559036596,-430.0,0.00019178,2]
[363040177,1748559036606,-2799.2,0.00019178,2]
[363040179,1748559036614,-430.0,0.00019178,2]
[363040181,1748559036623,-430.0,0.00019178,2]
[363040183,1748559036633,-517.21,0.00019178,2]
[363040185,1748559036642,-430.0,0.00019178,2]
[363040187,1748559036652,-430.0,0.00019178,2]
[363040189,1748559036661,-430.0,0.00019178,2]
[363040191,1748559036671,-430.0,0.00019178,2]
[363040193,1748559036679,-1019.32,0.00019178,2]
[363040195,1748559036689,-430.0,0.00019178,2]
[363040197,1748559036698,-3424.75,0.00019178,2]
[363040199,1748559036707,-430.0,0.00019178,2]
[363040201,1748559036716,-340.0,0.00019178,2]
[363040202,1748559036725,-430.0,0.00019178,2]
[363040203,1748559036735,-430.0,0.00019178,2]
[363040204,1748559036744,-430.0,0.00019178,2]
[363040205,1748559036753,-430.0,0.00019178,2]
[363040206,1748559036762,-430.0,0.00019178,2]
[363040207,1748559036771,-450.0,0.00019178,2]
[363040208,1748559036780,-1169.52,0.00019178,2]
[363040209,1748559036790,-430.0,0.00019178,2]
[363040210,1748559036799,-430.0,0.00019178,2]
[363040211,1748559036809,-430.0,0.00019178,2]
[363040212,1748559036818,-269.97000075,0.00019178,2]
[363040213,1748559036828,-430.0,0.00019178,2]
[363040214,1748559036837,-2693.38,0.00019178,2]
[363040215,1748559036847,-340.0,0.00019178,2]
[363040216,1748559036856,-430.0,0.00019178,2]
[363040217,1748559036866,-430.0,0.00019178,2]
[363040218,1748559036875,-430.0,0.00019178,2]
[363040219,1748559036885,-2725.7,0.00019178,2]
[363040220,1748559036895,-430.35,0.00019178,2]
[363040221,1748559036905,-500.0,0.00019178,2]
[363040222,1748559036913,-752.37,0.00019178,2]
[363040223,1748559036923,-500.0,0.00019178,2]
[363040225,1748559036932,-500.0,0.00019178,2]
[363040227,1748559036941,-500.0,0.00019178,2]
[363040229,1748559036951,-198.876315,0.00019178,2]
[363040231,1748559036960,-151.0,0.0001926,2]
[363040233,1748559036969,-500.0,0.0001926,2]
[363040235,1748559036979,-151.0,0.0001926,2]
[363040237,1748559036988,-156.78122916,0.0001926,2]
[363040239,1748559036998,-151.0,0.0001926,2]
[363040241,1748559037009,-151.0,0.0001926,2]
[363040243,1748559037018,-151.0,0.0001926,2]
[363040245,1748559037027,-151.0,0.0001926,2]
[363040246,1748559037036,-151.0,0.0001926,2]
[363040248,1748559037046,-151.0,0.0001926,2]
[363040250,1748559037055,-151.0,0.0001926,2]
[363040252,1748559037064,-151.0,0.0001926,2]
[363040254,1748559037075,-151.60411204,0.0001926,2]
[363040256,1748559037085,-151.0,0.0001926,2]
[363040258,1748559037095,-151.0,0.0001926,2]
[363040260,1748559037104,-151.0,0.0001926,2]
[363040262,1748559037113,-500.0,0.00019287,2]
[363040264,1748559037123,-151.0,0.00019287,2]
[363040266,1748559037132,-500.0,0.00019315,2]
[363040268,1748559037141,-546.2439137,0.00019319,2]
[363040270,1748559037150,-503.09515564,0.00019342,2]
[363040272,1748559037160,-2806.4,0.00019451,2]
[363040274,1748559037170,-2806.4,0.00019451,2]
[363040276,1748559037179,-2806.4,0.00019451,2]
[363040278,1748559037188,-2806.4,0.00019451,2]
[363040280,1748559037198,-2806.4,0.00019451,2]
[363040282,1748559037207,-2806.4,0.00019451,2]
[363040284,1748559037217,-2806.4,0.00019451,2]
[363040286,1748559037226,-2806.4,0.00019451,2]
[363040288,1748559037235,-701.71,0.00019451,2]
[363040290,1748559037245,-701.71,0.00019451,2]
[363040292,1748559037254,-701.71,0.00019451,2]
[363040294,1748559037263,-701.71,0.00019451,2]
[363040296,1748559037273,-701.71,0.00019451,2]
[363040298,1748559037282,-198.67538152,0.00019452,2]
[363040300,1748559037291,-430.0,0.00019452,2]
[363040302,1748559037301,-326.93558151,0.00019452,2]
[363040304,1748559037310,-465.04,0.00019452,2]
[363040306,1748559037321,-292.15838293,0.00019452,2]
[363040308,1748559037330,-430.0,0.00019452,2]
[363040309,1748559037339,-430.0,0.00019452,2]
[363040311,1748559037350,-430.0,0.00019452,2]
[363040313,1748559037360,-430.0,0.00019452,2]
[363040316,1748559037370,-430.0,0.00019452,2]
[363040317,1748559037379,-430.0,0.00019452,2]
[363040319,1748559037389,-430.0,0.00019452,2]
[363040321,1748559037399,-430.0,0.00019452,2]
[363040324,1748559037408,-430.0,0.00019452,2]
[363040326,1748559037418,-430.0,0.00019452,2]
[363040328,1748559037428,-430.0,0.00019452,2]
[363040330,1748559037437,-430.0,0.00019452,2]
[363040331,1748559037447,-430.0,0.00019452,2]
[363040333,1748559037457,-430.0,0.00019452,2]
[363040336,1748559037469,-430.0,0.00019452,2]
[363040338,1748559037478,-430.0,0.00019452,2]
[363040339,1748559037487,-347.19892321,0.00019452,2]
[363040341,1748559037496,-205.43486957,0.00019452,2]
[363040343,1748559037506,-430.0,0.00019452,2]
[363040345,1748559037515,-432.26426022,0.00019452,2]
[363040347,1748559037524,-430.0,0.00019452,2]
[363040349,1748559037534,-430.0,0.00019452,2]
[363040351,1748559037544,-430.0,0.00019452,2]
[363040353,1748559037553,-430.0,0.00019452,2]
[363040356,1748559037564,-430.0,0.00019452,2]
[363040358,1748559037573,-420.72950825,0.00019452,2]
[363040361,1748559037583,-430.0,0.00019452,2]
[363040363,1748559037592,-430.0,0.00019452,2]
[363040365,1748559037602,-430.0,0.00019452,2]
[363040367,1748559037611,-430.0,0.00019452,2]
[363040379,1748559037718,-253.79721746,0.00019452,2]
[363040381,1748559037728,-430.0,0.00019452,2]
[363040383,1748559037738,-430.0,0.00019452,2]
[363040385,1748559037749,-430.0,0.00019452,2]
[363040387,1748559037759,-430.0,0.00019452,2]
[363040389,1748559037768,-500.0,0.00019452,2]
[363040391,1748559037777,-1131.49,0.00019452,2]
[363040393,1748559037787,-681.15,0.00019452,2]
[363040395,1748559037795,-430.0,0.00019452,2]
[363040397,1748559037804,-430.0,0.00019452,2]
[363040399,1748559037814,-430.0,0.00019452,2]
[363040401,1748559037824,-853.32,0.00019452,2]
[363040403,1748559037834,-430.0,0.00019452,2]
[363040405,1748559037844,-430.0,0.00019452,2]
[363040407,1748559037853,-430.0,0.00019452,2]
[363040409,1748559037863,-430.0,0.00019452,2]
[363040411,1748559037873,-430.0,0.00019452,2]
[363040413,1748559037882,-516.11634837,0.00019452,2]
[363040415,1748559037892,-458.44,0.00019452,2]
[363040417,1748559037901,-430.0,0.00019452,2]
[363040419,1748559037910,-430.0,0.00019452,2]
[363040421,1748559037920,-430.0,0.00019452,2]
[363040423,1748559037930,-430.0,0.00019452,2]
[363040425,1748559037939,-430.0,0.00019452,2]
[363040427,1748559037949,-579.88605255,0.00019452,2]
[363040429,1748559037959,-430.0,0.00019452,2]
[363040431,1748559037968,-430.0,0.00019452,2]
[363040433,1748559037977,-430.0,0.00019452,2]
[363040435,1748559037986,-430.0,0.00019452,2]
[363040437,1748559037996,-435.52434879,0.00019452,2]
[363040439,1748559038016,-760.73,0.00019452,2]
[363040441,1748559038027,-337.15492325,0.00019452,2]
[363040443,1748559038036,-430.0,0.00019452,2]
[363040445,1748559038045,-430.0,0.00019452,2]
[363040447,1748559038055,-430.0,0.00019452,2]
[363040448,1748559038065,-406.99774531,0.00019452,2]
[363040450,1748559038075,-430.0,0.00019452,2]
[363040453,1748559038084,-430.0,0.00019452,2]
[363040455,1748559038094,-430.0,0.00019452,2]
[363040456,1748559038104,-430.0,0.00019452,2]
[363040458,1748559038113,-430.0,0.00019452,2]
[363040460,1748559038123,-430.0,0.00019452,2]
[363040463,1748559038132,-336.6361336,0.00019452,2]
[363040464,1748559038142,-430.0,0.00019452,2]
[363040467,1748559038152,-345.4640596,0.00019452,2]
[363040468,1748559038161,-430.0,0.00019452,2]
[363040471,1748559038171,-430.0,0.00019452,2]
[363040473,1748559038181,-430.0,0.00019452,2]
[363040475,1748559038191,-430.0,0.00019452,2]
[363040476,1748559038201,-434.42318492,0.00019452,2]
[363040478,1748559038210,-430.0,0.00019452,2]
[363040480,1748559038220,-430.0,0.00019452,2]
[363040483,1748559038230,-430.0,0.00019452,2]
[363040485,1748559038242,-430.0,0.00019452,2]
[363040487,1748559038253,-430.0,0.00019452,2]
[363040489,1748559038262,-430.0,0.00019452,2]
[363040491,1748559038272,-430.0,0.00019452,2]
[363040493,1748559038281,-150.58430178,0.00019452,2]
[363040494,1748559038291,-430.0,0.00019452,2]
[363040496,1748559038300,-773.76,0.00019452,2]
[363040499,1748559038310,-430.0,0.00019452,2]
[363040502,1748559038320,-430.0,0.00019452,2]
[363040506,1748559038330,-4753.22,0.00019452,2]
[363040509,1748559038340,-430.0,0.00019452,2]
[363040511,1748559038351,-430.0,0.00019452,2]
[363040514,1748559038360,-430.0,0.00019452,2]
[363040518,1748559038370,-430.0,0.00019452,2]
[363040521,1748559038380,-662.19,0.00019452,2]
[363040524,1748559038390,-430.0,0.00019452,2]
[363040526,1748559038401,-3674.83,0.00019452,2]
[363040528,1748559038411,-430.0,0.00019452,2]
[363040530,1748559038422,-430.0,0.00019452,2]
[363040533,1748559038432,-430.0,0.00019452,2]
[363040534,1748559038441,-430.0,0.00019452,2]
[363040536,1748559038450,-589.21,0.00019452,2]
[363040538,1748559038460,-2053.24,0.00019452,2]
[363040540,1748559038470,-430.0,0.00019452,2]
[363040542,1748559038479,-430.0,0.00019452,2]
[363040544,1748559038488,-430.0,0.00019452,2]
[363040546,1748559038498,-720.56,0.00019452,2]
[363040548,1748559038507,-696.31,0.00019452,2]
[363040550,1748559038516,-2613.16,0.00019452,2]
[363040552,1748559038526,-430.0,0.00019452,2]
[363040554,1748559038536,-370.0,0.00019452,2]
[363040556,1748559038550,-202.99,0.00019452,2]
[363040558,1748559038564,-430.0,0.00019452,2]
[363040561,1748559038573,-430.0,0.00019452,2]
[363040562,1748559038583,-430.0,0.00019452,2]
[363040564,1748559038592,-430.0,0.00019452,2]
[363040566,1748559038601,-430.0,0.00019452,2]
[363040569,1748559038611,-430.0,0.00019452,2]
[363040570,1748559038620,-430.0,0.00019452,2]
[363040573,1748559038629,-4412.79,0.00019452,2]
[363040574,1748559038638,-968.5,0.00019452,2]
[363040576,1748559038648,-430.0,0.00019452,2]
[363040579,1748559038658,-430.0,0.00019452,2]
[363040581,1748559038667,-430.0,0.00019452,2]
[363040582,1748559038676,-517.0,0.00019452,2]
[363040584,1748559038685,-430.0,0.00019452,2]
[363040586,1748559038694,-644.49,0.00019452,2]
[363040588,1748559038704,-430.0,0.00019452,2]
[363040590,1748559038713,-430.0,0.00019452,2]
[363040592,1748559038722,-430.0,0.00019452,2]
[363040594,1748559038731,-430.0,0.00019452,2]
[363040596,1748559038741,-953.49,0.00019452,2]
[363040598,1748559038750,-430.0,0.00019452,2]
[363040600,1748559038759,-2879.71,0.00019452,2]
[363040602,1748559038768,-458.78,0.00019452,2]
[363040604,1748559038778,-697.57,0.00019452,2]
[363040606,1748559038787,-430.0,0.00019452,2]
[363040608,1748559038796,-450.0,0.00019452,2]
[363040610,1748559038805,-3822.31,0.00019452,2]
[363040612,1748559038814,-430.0,0.00019452,2]
[363040614,1748559038824,-848.19,0.00019452,2]
[363040616,1748559038833,-1041.37,0.00019452,2]
[363040618,1748559038842,-430.0,0.00019452,2]
[363040620,1748559038851,-430.0,0.00019452,2]
[363040622,1748559038860,-510.0,0.00019452,2]
[363040624,1748559038869,-8172.02,0.00019452,2]
[363040626,1748559038878,-430.0,0.00019452,2]
[363040628,1748559038888,-430.0,0.00019452,2]
[363040630,1748559038896,-1022.41,0.00019452,2]
[363040632,1748559038905,-1425.87,0.00019452,2]
[363040634,1748559038914,-5104.13,0.00019452,2]
[363040636,1748559038923,-1326.38,0.00019452,2]
[363040638,1748559038932,-873.84,0.00019452,2]
[363040640,1748559038942,-7369.0,0.00019452,2]
[363040641,1748559038951,-467.28,0.00019452,2]
[363040643,1748559038960,-500.0,0.00019452,2]
[363040646,1748559038970,-430.0,0.00019452,2]
[363040647,1748559038979,-2070.38,0.00019452,2]
[363040649,1748559038988,-2055.19,0.00019452,2]
[363040651,1748559038999,-430.0,0.00019452,2]
[363040654,1748559039011,-430.0,0.00019452,2]
[363040655,1748559039020,-1511.1,0.00019452,2]
[363040657,1748559039030,-430.0,0.00019452,2]
[363040659,1748559039039,-430.0,0.00019452,2]
[363040661,1748559039049,-430.0,0.00019452,2]
[363040663,1748559039059,-1350.97,0.00019452,2]
[363040665,1748559039069,-1584.57,0.00019452,2]
[363040667,1748559039079,-750.88,0.00019452,2]
[363040670,1748559039090,-510.0,0.00019452,2]
[363040671,1748559039099,-1425.46,0.00019452,2]
[363040673,1748559039109,-430.0,0.00019452,2]
[363040675,1748559039118,-722.11,0.00019452,2]
[363040677,1748559039127,-760.02,0.00019452,2]
[363040679,1748559039137,-430.0,0.00019452,2]